{"text_format":"1","workbook":"xlsx","n_sheets":2,"sheets":["Anleitung","Kalender"],"not_rendered":{"charts":0,"images":0,"macros":1,"external_links":0,"defined_names":1,"comments":1,"pivot_tables":0},"unopened":[],"bounds":{"document_bytes":16777216,"sheet_cells":100000,"rows_first":2000,"rows_last":500,"rows_between":2000,"halvings":0,"cell_chars":16384,"cell_head_chars":4096},"cells_cut":0,"cells_raw":0,"read":"whole","date_system":"1900"}

{"sheet":"Anleitung","index":0,"n_rows":44,"n_cols":2,"rows_kept":44,"cut":false,"hidden":false,"merged":[]}
["Formular ÜL-Stunden - Stand 2022"]
[]
["Dieses Formular soll allen Übungsleitern die Erfassung der ÜL-Stunden erleichtern. Es "]
["steht euch als Download auf der Internetseite des SCN (www.sc-nordwalde.de) zur Verfügung."]
["Einige Funktionen können unter Umständen nur genutzt werden, wenn Makros aktiviert werden. "]
[]
["Für die weitere Bearbeitung ist es zunächst wichtig, die Datei auf eurem PC zu speichern."]
["Im Dateinamen sollte die Abteilung, der Name des Übungsleiters sowie das Kalenderjahr"]
["enthalten sein."]
[]
["z.B.: ","ÜL-Stunden 2021 für Fritz Müller, Abteilung Handball"]
["Dateiname: ","HB21Müller.xls"]
[]
["Als nächstes sind die persönlichen Daten einzutragen. Wichtig ist für eventuelle Rückfragen "]
["die Angabe der Telefonnummer. Die Daten werden gem. DSGVO nur für die Abrechnung "]
["der geleisteten ÜL-Stunden gespeichert. "]
[]
["Die Erfassung der geleisteten Stunden erfolgt im Kalender. "]
["Anschließend ist noch das massgebliche Entgelt pro Stunde zu erfassen. Zur Zeit gilt"]
["folgende Regelung für die Vergütung der Übungsleiter im SCN:"]
[]
[]
[6.5,"Übungsleiter mit anerkannter Qualifizierung mit/ohne Gruppenleitung"]
[]
[5.5,"Übungsleiter über 60, die in der Vergangenheit eine anerkannte Qualifikation "]
[null,"besessen haben"]
[]
[4.5,"Übungsleiter mit SCN-Akademie u. Gruppenleitung / kompetente nicht "]
[null,"anerkannt qualifizierte Übungsleiter mit mindestens 5-jähriger ununter-"]
[null,"brochener Übungsleitertätigkeit"]
[]
[4.5,"Übungsleiter ohne anerkannte Qualifikation u. Gruppenleitung (unter"]
[null," 5 Jahre) / anerkannte qualifiziert oder SCN-Akademie ohne Gruppenleit."]
[]
[3.5,"Helfer ohne Qualifizierung und ohne Gruppenleitung"]
[]
["Bitte die Bankverbindung nur eintragen, wenn sie sich seit der letzten ÜL-Abrechnung "]
["geändert hat."]
[]
["Die Datei sollte zwecks Prüfung zunächst an den Abteilungsleiter geschickt werden. "]
["Bei weiteren Fragen stehe ich unter der Tel.-Nr. 0152/53927995 zur Verfügung."]
[]
["Peter Rathmann"]
["2022-04-05"]

{"sheet":"Kalender","index":1,"n_rows":42,"n_cols":33,"rows_kept":42,"cut":false,"hidden":false,"merged":[[40,1,40,9],[32,1,32,2],[33,1,33,2],[33,6,33,7],[27,10,28,13],[30,6,30,7],[28,1,28,2],[28,6,28,7],[28,3,28,5],[29,3,29,5],[27,3,27,5],[33,3,33,5],[29,1,29,2],[30,1,30,2],[31,1,31,2],[31,10,32,12],[4,33,4,35],[4,29,4,32],[6,28,6,32],[6,16,6,23],[6,13,6,15],[30,3,30,5],[2,1,2,12],[2,16,2,23],[31,3,31,5],[32,3,32,5],[27,14,28,16],[29,6,29,7],[31,6,31,7],[32,6,32,7],[29,10,30,13],[29,14,30,16],[4,16,4,23],[4,1,4,12],[6,1,6,12],[42,15,42,18],[22,29,23,31],[31,13,32,13],[2,28,2,32],[22,32,23,32],[2,13,2,15],[4,13,4,15],[31,14,32,16]]}
["Übungsleiterstunden für das Kalenderjahr 2025"]
[]
["Name:",null,null,null,null,null,null,null,null,null,null,null,null,"   Vorname:   ",null,null,null,null,null,null,null,null,null,null,null,"Abteilung:"]
[]
["Adresse:",null,null,null,null,null,null,null,null,null,null,null,null,"   PLZ/Ort:",null,null,null,null,null,null,null,null,null,null,null,"ÜL-Lizenz/gültig bis"]
[]
["Email:",null,null,null,null,null,null,null,null,null,null,null,null,"    Telefon:",null,null,null,null,null,null,null,null,null,null,null," Mobil:"]
[]
[]
["Monat","1.","2.","3.","4.","5.","6.","7.","8.","9.","10.","11.","12.","13.","14.","15.","16.","17.","18.","19.","20.","21.","22.","23.","24.","25.","26.","27.","28.","29.","30.","31.","Summe:"]
["Januar",null,null,null,null,null,null,null,null,null,null,null,null,null,null,null,null,null,null,null,null,null,null,null,null,null,null,null,null,null,null,null,{"$f":"IF(SUM(B11:AF11)=0,0,SUM(B11:AF11))","v":0}]
["Februar",null,null,null,null,null,null,null,null,null,null,null,null,null,null,null,null,null,null,null,null,null,null,null,null,null,null,null,null,null,null,null,{"$f":"IF(SUM(B12:AF12)=0,0,SUM(B12:AF12))","v":0}]
["März",null,null,null,null,null,null,null,null,null,null,null,null,null,null,null,null,null,null,null,null,null,null,null,null,null,null,null,null,null,null,null,0]
["April",null,null,null,null,null,null,null,null,null,null,null,null,null,null,null,null,null,null,null,null,null,null,null,null,null,null,null,null,null,null,null,0]
["Mai",null,null,null,null,null,null,null,null,null,null,null,null,null,null,null,null,null,null,null,null,null,null,null,null,null,null,null,null,null,null,null,0]
["Juni",null,null,null,null,null,null,null,null,null,null,null,null,null,null,null,null,null,null,null,null,null,null,null,null,null,null,null,null,null,null,null,0]
["Juli",null,null,null,null,null,null,null,null,null,null,null,null,null,null,null,null,null,null,null,null,null,null,null,null,null,null,null,null,null,null,null,0]
["August",null,null,null,null,null,null,null,null,null,null,null,null,null,null,null,null,null,null,null,null,null,null,null,null,null,null,null,null,null,null,null,0]
["September",null,null,null,null,null,null,null,null,null,null,null,null,null,null,null,null,null,null,null,null,null,null,null,null,null,null,null,null,null,null,null,0]
["Oktober",null,null,null,null,null,null,null,null,null,null,null,null,null,null,null,null,null,null,null,null,null,null,null,null,null,null,null,null,null,null,null,0]
["November",null,null,null,null,null,null,null,null,null,null,null,null,null,null,null,null,null,null,null,null,null,null,null,null,null,null,null,null,null,null,null,0]
["Dezember",null,null,null,null,null,null,null,null,null,null,null,null,null,null,null,null,null,null,null,null,null,null,null,null,null,null,null,null,null,null,null,0]
["uebungsleiter2019",null,null,null,null,null,null,null,null,null,null,null,null,null,null,null,null,null,null,null,null,null,null,null,null,"Ballsportgruppe",null,null,null,"Summe:",null,null,{"$f":"IF(SUM(AG11:AG22)=0,0,SUM(AG11:AG22))","v":0}]
[null,null," = Sonntag  / Feiertag",null,null,null,null,null,null," = Ferien",null,null,null,null,null,null,null,null,null,null,null,null,null,null,null,"Boxen"]
[null,null,null,null,null,null,null,null,null,null,null,null,null,null,null,null,null,null,null,null,null,null,null,null,null,"Fußball"]
["Übersicht",null,null,null,null,null,null,null,null,null,"Abrechnung:",null,null,null,null,null,null,null,null,null,null,null,null,null,null,"Handball"]
[null,null,null,null,null,null,null,null,null,null,null,null,null,null,null,null,null,null,null,null,null,null,null,null,null,"Jedermänner"]
["Monat","Stunden",null,"Monat",null,null,"Stunden",null,null,null,"Gesamtstunden:",null,null,null,{"$f":"SUM(G29:H34,B29:C34)","v":0},null,null,null,null,null,null,null,null,null,null,"Judo"]
["Januar",{"$f":"AG11","v":0},null,"Juli",null,null,{"$f":"AG17","v":0},null,null,null,null,null,null,null,null,null,null,null,null,null,null,null,null,null,null,"Lauftreff/Walking"]
["Februar",0,null,"August",null,null,0,null,null,3.5,"ÜL-Entgelt/Std.",null,null,null,null,null,null,null,null,null,null,null,null,null,null,"Leichtathletik"]
["März",0,null,"September",null,null,0,null,null,4.5,null,null,null,null,null,null,null,null,null,null,null,null,null,null,null,"Reha/Behindertensport"]
["April",0,null,"Oktober",null,null,0,null,null,5.5,"Auszahlung:",null,null,null,{"$f":"O28*O30","v":0},null,null,null,null,null,null,null,null,null,null,"Tennis"]
["Mai",0,null,"November",null,null,0,null,null,6.5,null,null,null,null,null,null,null,null,null,null,null,null,null,null,null,"Tischtennis"]
["Juni",0,null,"Dezember",null,null,0,null,null,null,null,null,null,null,null,null,null,null,null,null,null,null,null,null,null,"Trampolin"]
[null,null,null,null,null,null,null,null,null,null,null,null,null,null,null,null,null,null,null,null,null,null,null,null,null,"Kinderturnen"]
[null,"Ich möchte meine Bankverbindung angeben.",null,null,null,null,null,null,null,null,null,null,null,null,null,null,null,null,null,null,null,null,null,null,null,"Kunstturnen"]
[null,"(nur für neue Übungsleiter oder bei neuer Bankverbindung!)",null,null,null,null,null,null,null,null,null,null,null,null,null,null,null,null,null,null,null,null,null,null,null,"Seniorenturnen"]
[null,null,null,null,null,null,null,null,null,null,null,null,null,null,null,null,null,null,null,null,null,null,null,null,null,"Turnen"]
["Der Betrag soll auf folgendes Konto überwiesen werden:",null,null,null,null,null,null,null,null,null,null,null,null,null,null,null,null,null,null,null,null,null,null,null,null,"Volleyball"]
[null,null,null,null,null,null,null,null,null,null,null,null,null,null,null,null,null,null,null,null,null,null,null,null,null,"Vital"]
["   IBAN:",null,null,null,null,null,null,null,null,null,{"$f":"SUBSTITUTE(B41,\" \",\"\")","v":""},{"$f":"IF(B41=\"\",\"\",IF(ISERROR(IF(IBANOK(K41),\"IBAN ist OK!\",\"IBAN ist vermutlich falsch!\")),\"\",IF(IBANOK(K41),\"IBAN ist OK!\",\"IBAN ist vermutlich falsch!\")))","v":""}]
[null,"Bitte IBAN ohne Leerzeichen eingeben!"]